fUSD/lending_fUSD_20251220
["ID","MTS","AMOUNT","RATE_DAILY","PERIOD"]
[399258433,1766212238662,-1356.26502607,0.00012614,2]
[399258434,1766212238672,-200.0,0.00012643,2]
[399258435,1766212238682,-200.0,0.00012643,2]
[399258436,1766212238695,-500.0,0.00012643,2]
[399258437,1766212238706,-5852.60752696,0.0001289,2]
[399258438,1766212238716,-23513.68068727,0.00012936,2]
[399258439,1766212238725,-38325.67171342,0.00012972,2]
[399258440,1766212238735,-150.99,0.00012972,2]
[399258441,1766212238745,-3805.42,0.00012972,2]
[399258442,1766212238754,-299.99,0.00012972,2]
[399258443,1766212238764,-1647.70919262,0.0001298,2]
[399258444,1766212238774,-114337.33661584,0.0001299,2]
[399258445,1766212238784,-433.0,0.00013088,2]
[399258446,1766212238794,-200.0,0.00013191,2]
[399258447,1766212238804,-200.0,0.00013191,2]
[399258448,1766212238814,-500.0,0.00013191,2]
[399258449,1766212238824,-268.67,0.0001321,2]
[399258450,1766212238834,-167.44206992,0.0001321,2]
[399258451,1766212238844,-1600.0,0.00013241,2]
[399258452,1766212238854,-402.06888544,0.00013449,2]
[399258453,1766212238864,-1356.26502607,0.00013471,2]
[399258454,1766212238874,-1000.0,0.000135,2]
[399258455,1766212238884,-23513.68068727,0.00013615,2]
[399258456,1766212238894,-151.0,0.00013659,2]
[399258457,1766212238903,-151.0,0.00013668,2]
[399258458,1766212238913,-244.51516293,0.00013673,2]
[399258459,1766212238924,-500.0,0.00013698,2]
[399258460,1766212238935,-500.0,0.00013698,2]
[399258461,1766212238945,-500.0,0.00013698,2]
[399258462,1766212238955,-500.0,0.00013698,2]
[399258463,1766212238965,-500.0,0.00013698,2]
[399258464,1766212238975,-500.0,0.00013698,2]
[399258465,1766212238984,-500.0,0.00013698,2]
[399258466,1766212238994,-500.0,0.00013698,2]
[399258467,1766212239004,-500.0,0.00013698,2]
[399258468,1766212239016,-500.0,0.00013698,2]
[399258469,1766212239026,-500.0,0.00013698,2]
[399258470,1766212239036,-500.0,0.00013698,2]
[399258471,1766212239046,-500.0,0.00013698,2]
[399258472,1766212239063,-500.0,0.00013698,2]
[399258473,1766212239072,-500.0,0.00013698,2]
[399258474,1766212239082,-500.0,0.00013698,2]
[399258475,1766212239092,-500.0,0.00013698,2]
[399258476,1766212239102,-500.0,0.00013698,2]
[399258477,1766212239112,-467.18251007,0.00013698,2]
[399258478,1766212239123,-500.0,0.00013698,2]
[399258479,1766212239133,-500.0,0.00013698,2]
[399258480,1766212239143,-500.0,0.00013698,2]
[399258481,1766212239153,-505.83670147,0.00013698,2]
[399258482,1766212239163,-500.0,0.00013698,2]
[399258483,1766212239172,-500.0,0.00013698,2]
[399258484,1766212239185,-500.0,0.00013698,2]
[399258485,1766212239194,-360.14623993,0.00013698,2]
[399258486,1766212239204,-500.0,0.00013698,2]
[399258487,1766212239214,-500.0,0.00013698,2]
[399258488,1766212239224,-305.19,0.00013698,2]
[399258489,1766212239233,-500.0,0.00013698,2]
[399258490,1766212239243,-500.0,0.00013698,2]
[399258491,1766212239253,-500.0,0.00013698,2]
[399258492,1766212239262,-214.74412357,0.00013698,2]
[399258493,1766212239275,-500.0,0.00013698,2]
[399258494,1766212239284,-500.0,0.00013698,2]
[399258495,1766212239294,-500.0,0.00013698,2]
[399258496,1766212239303,-500.0,0.00013698,2]
[399258497,1766212239313,-500.0,0.00013698,2]
[399258498,1766212239323,-500.0,0.00013698,2]
[399258499,1766212239332,-500.0,0.00013698,2]
[399258500,1766212239342,-500.0,0.00013698,2]
[399258501,1766212239351,-500.0,0.00013698,2]
[399258502,1766212239361,-500.0,0.00013698,2]
[399258503,1766212239371,-500.0,0.00013698,2]
[399258504,1766212239380,-500.0,0.00013698,2]
[399258505,1766212239390,-500.0,0.00013698,2]
[399258506,1766212239400,-500.0,0.00013698,2]
[399258507,1766212239410,-500.0,0.00013698,2]
[399258508,1766212239420,-500.0,0.00013698,2]
[399258509,1766212239429,-500.0,0.00013698,2]
[399258510,1766212239439,-500.0,0.00013698,2]
[399258511,1766212239449,-500.0,0.00013698,2]
[399258512,1766212239459,-500.0,0.00013698,2]
[399258513,1766212239472,-500.0,0.00013698,2]
[399258514,1766212239482,-500.0,0.00013698,2]
[399258515,1766212239492,-500.0,0.00013698,2]
[399258516,1766212239501,-1000.0,0.00013699,2]
[399258517,1766212239511,-166.66,0.00013699,2]
[399258518,1766212239521,-4495.59,0.00013699,2]
[399258519,1766212239530,-1543.55,0.00013699,2]
[399258520,1766212239540,-332.46,0.00013699,2]
[399258521,1766212239549,-150.99,0.00013699,2]
[399258522,1766212239559,-999.99,0.00013699,2]
[399258523,1766212239569,-152.35,0.00013699,2]
[399258524,1766212239579,-150.74,0.00013699,2]
[399258525,1766212239588,-151.71,0.00013699,2]
[399258527,1766212239598,-150.62,0.00013699,2]
[399258528,1766212239608,-150.9,0.00013699,2]
[399258530,1766212239618,-150.01,0.00013699,2]
[399258531,1766212239630,-9999.99,0.00013699,2]
[399258532,1766212239644,-9999.99,0.00013699,2]
[399258533,1766212239654,-207.4,0.00013738,2]
[399258534,1766212239668,-200.0,0.00013739,2]
[399258535,1766212239677,-200.0,0.00013739,2]
[399258536,1766212239687,-500.0,0.00013739,2]
[399258537,1766212239697,-169.28855325,0.00013773,2]
[399258538,1766212239707,-172.60476821,0.00013773,2]
[399258539,1766212239717,-166.07222089,0.00013773,2]
[399258540,1766212239728,-500.0,0.00013773,2]
[399258541,1766212239737,-500.0,0.00013773,2]
[399258542,1766212239747,-500.0,0.00013773,2]
[399258543,1766212239756,-165.53185787,0.00013773,2]
[399258544,1766212239766,-163.10613259,0.00013773,2]
[399258545,1766212239775,-500.0,0.00013773,2]
[399258546,1766212239785,-500.0,0.00013773,2]
[399258547,1766212239795,-163.72295793,0.00013773,2]
[399258548,1766212239804,-500.0,0.00013773,2]
[399258549,1766212239814,-500.0,0.00013773,2]
[399258550,1766212239823,-315.42381846,0.00013773,2]
[399258551,1766212239833,-500.0,0.00013773,2]
[399258552,1766212239842,-162.87078705,0.00013773,2]
[399258553,1766212239851,-500.0,0.00013773,2]
[399258554,1766212239863,-500.0,0.00013773,2]
[399258555,1766212239872,-500.0,0.00013773,2]
[399258556,1766212239881,-500.0,0.00013773,2]
[399258557,1766212239891,-536.13646338,0.00013773,2]
[399258558,1766212239900,-500.0,0.00013773,2]
[399258559,1766212239909,-500.0,0.00013773,2]
[399258560,1766212239918,-500.0,0.00013773,2]
[399258561,1766212239927,-500.0,0.00013773,2]
[399258562,1766212239937,-515.85064943,0.00013773,2]
[399258563,1766212239946,-165.31243658,0.00013773,2]
[399258564,1766212239955,-500.0,0.00013773,2]
[399258565,1766212239964,-500.0,0.00013773,2]
[399258566,1766212239974,-500.0,0.00013773,2]
[399258567,1766212239983,-216.27337885,0.00013773,2]
[399258568,1766212239992,-500.0,0.00013773,2]
[399258569,1766212240002,-500.0,0.00013773,2]
[399258570,1766212240011,-500.0,0.00013773,2]
[399258571,1766212240020,-500.0,0.00013773,2]
[399258572,1766212240030,-500.0,0.00013773,2]
[399258573,1766212240038,-562.57939524,0.00013773,2]
[399258574,1766212240048,-160.23016142,0.00013773,2]
[399258575,1766212240061,-162.0459649,0.00013773,2]
[399258576,1766212240071,-500.0,0.00013773,2]
[399258577,1766212240081,-201.65516925,0.00013773,2]
[399258578,1766212240091,-179.50290541,0.00013773,2]
[399258580,1766212240100,-500.0,0.00013773,2]
[399258582,1766212240109,-165.7973653,0.00013773,2]
[399258584,1766212240119,-500.0,0.00013773,2]
[399258587,1766212240129,-166.66,0.00013836,2]
[399258588,1766212240139,-305.19,0.00013972,2]
[399258590,1766212240148,-166.66,0.00013973,2]
[399258592,1766212240158,-166.66,0.0001411,2]
[399258594,1766212240167,-452.67847087,0.00014221,2]
[399258596,1766212240176,-305.19,0.00014246,2]
[399258598,1766212240189,-166.66,0.00014247,2]
[399258600,1766212240198,-200.0,0.00014287,2]
[399258602,1766212240209,-200.0,0.00014287,2]
[399258604,1766212240219,-500.0,0.00014287,2]
[399258606,1766212240228,-23513.68068727,0.00014294,2]
[399258608,1766212240237,-500.0,0.0001432,2]
[399258610,1766212240246,-500.0,0.0001432,2]
[399258612,1766212240255,-500.0,0.0001432,2]
[399258615,1766212240267,-500.0,0.0001432,2]
[399258616,1766212240276,-208.16009032,0.00014321,2]
[399258618,1766212240286,-1000.0,0.00014321,2]
[399258619,1766212240295,-1000.78461254,0.00014321,2]
[399258620,1766212240304,-1000.0,0.00014321,2]
[399258621,1766212240314,-1000.0,0.00014321,2]
[399258622,1766212240324,-1135.18911943,0.00014321,2]
[399258623,1766212240334,-1002.93994495,0.00014321,2]
[399258624,1766212240343,-1000.0,0.00014321,2]
[399258625,1766212240352,-572.75082077,0.00014321,2]
[399258626,1766212240361,-1000.0,0.00014321,2]
[399258627,1766212240370,-1000.0,0.00014321,2]
[399258628,1766212240379,-594.53896978,0.00014321,2]
[399258629,1766212240389,-627.27365114,0.00014321,2]
[399258630,1766212240398,-1000.0,0.00014321,2]
[399258631,1766212240407,-1000.0,0.00014321,2]
[399258632,1766212240416,-500.31513524,0.00014321,2]
[399258633,1766212240425,-1000.0,0.00014321,2]
[399258634,1766212240434,-1000.0,0.00014321,2]
[399258635,1766212240444,-1000.0,0.00014321,2]
[399258636,1766212240456,-1002.74001595,0.00014321,2]
[399258637,1766212240465,-1000.0,0.00014321,2]
[399258638,1766212240475,-1000.0,0.00014321,2]
[399258639,1766212240484,-1000.0,0.00014321,2]
[399258640,1766212240493,-483.93215772,0.00014321,2]
[399258641,1766212240503,-1000.0,0.00014321,2]
[399258642,1766212240511,-1000.0,0.00014321,2]
[399258643,1766212240520,-453.43519306,0.00014321,2]
[399258644,1766212240530,-1356.26502607,0.00014328,2]
[399258645,1766212240539,-162.0,0.00014353,2]
[399258646,1766212240549,-166.66,0.00014384,2]
[399258647,1766212240558,-250.0,0.00014401,2]
[399258648,1766212240567,-500.0,0.00014794,2]
[399258649,1766212240576,-150.0,0.00014794,2]
[399258650,1766212240585,-500.0,0.00014794,2]
[399258651,1766212240594,-500.0,0.00014794,2]
[399258652,1766212240603,-500.0,0.00014794,2]
[399258653,1766212240612,-765.0,0.00014794,2]
[399258654,1766212240621,-150.0,0.00014794,2]
[399258655,1766212240630,-519.0,0.00014794,2]
[399258656,1766212240640,-150.0,0.00014794,2]
[399258657,1766212240650,-150.0,0.00014794,2]
[399258658,1766212240659,-1054.0,0.00014794,2]
[399258659,1766212240669,-500.0,0.00014794,2]
[399258660,1766212240679,-500.0,0.00014794,2]
[399258661,1766212240688,-150.0,0.00014794,2]
[399258662,1766212240697,-500.0,0.00014796,2]
[399258663,1766212240706,-200.0,0.00014835,2]
[399258664,1766212240716,-200.0,0.00014835,2]
[399258665,1766212240725,-500.0,0.00014835,2]
[399258666,1766212240735,-1500.0,0.00014868,2]
[399258667,1766212240743,-1001.91769362,0.00014868,2]
[399258668,1766212240752,-1500.0,0.00014868,2]
[399258669,1766212240762,-1501.51415398,0.00014868,2]
[399258670,1766212240771,-365.94030489,0.00014868,2]
[399258671,1766212240780,-1502.00400434,0.00014868,2]
[399258672,1766212240789,-1500.0,0.00014868,2]
[399258673,1766212240799,-1500.0,0.00014868,2]
[399258674,1766212240808,-1501.18432329,0.00014868,2]
[399258675,1766212240817,-502.20443143,0.00014868,2]
[399258676,1766212240827,-1500.0,0.00014868,2]
[399258677,1766212240836,-1001.58945381,0.00014868,2]
[399258678,1766212240846,-1500.0,0.00014868,2]
[399258679,1766212240855,-1211.67995912,0.00014868,2]
[399258680,1766212240864,-1500.0,0.00014868,2]
[399258681,1766212240874,-1503.97714891,0.00014868,2]
[399258682,1766212240883,-1600.0,0.00014896,2]
[399258683,1766212240892,-500.0,0.00014931,2]
[399258684,1766212240901,-150.0,0.00014931,2]
[399258685,1766212240910,-500.0,0.00014931,2]
[399258686,1766212240920,-500.0,0.00014931,2]
[399258687,1766212240930,-632.01458536,0.00014931,2]
[399258688,1766212240939,-765.0,0.00014931,2]
[399258689,1766212240950,-519.0,0.00014931,2]
[399258690,1766212240959,-150.0,0.00014931,2]
[399258691,1766212240968,-1054.0,0.00014931,2]
[399258692,1766212240978,-500.0,0.00014931,2]
[399258693,1766212240987,-23513.68068727,0.00014973,2]
[399258694,1766212240996,-1154.66111645,0.00015,2]
[399258695,1766212241006,-21450.94429117,0.00015,2]
[399258696,1766212241015,-500.0,0.00015068,2]
[399258697,1766212241025,-150.0,0.00015068,2]
[399258698,1766212241036,-500.0,0.00015068,2]
[399258699,1766212241046,-350.0,0.00015068,2]
[399258700,1766212241055,-765.0,0.00015068,2]
[399258701,1766212241066,-519.0,0.00015068,2]
[399258702,1766212241075,-200.0,0.00015068,2]
[399258703,1766212241084,-1054.0,0.00015068,2]
[399258704,1766212241095,-171.93,0.0001515,2]
[399258705,1766212241104,-1356.26502607,0.00015185,2]
[399258706,1766212241115,-500.0,0.00015205,2]
[399258707,1766212241126,-150.0,0.00015205,2]
[399258708,1766212241136,-500.0,0.00015205,2]
[399258709,1766212241145,-765.0,0.00015205,2]
[399258710,1766212241154,-519.0,0.00015205,2]
[399258711,1766212241163,-1054.0,0.00015205,2]
[399258712,1766212241172,-500.0,0.00015342,2]
[399258713,1766212241183,-150.0,0.00015342,2]
[399258714,1766212241195,-500.0,0.00015342,2]
[399258715,1766212241205,-765.0,0.00015342,2]
[399258716,1766212241215,-519.0,0.00015342,2]
[399258717,1766212241224,-1054.0,0.00015342,2]
[399258718,1766212241235,-249.44921854,0.00015372,2]
[399258719,1766212241244,-200.0,0.00015383,2]
[399258720,1766212241255,-200.0,0.00015383,2]
[399258721,1766212241264,-500.0,0.00015383,2]
[399258722,1766212241273,-505.81490245,0.000154,2]
[399258723,1766212241282,-2000.0,0.00015416,2]
[399258724,1766212241291,-1188.04388907,0.00015416,2]
[399258725,1766212241301,-1393.70965969,0.00015416,2]
[399258726,1766212241310,-2002.17420355,0.00015416,2]
[399258727,1766212241319,-1503.12423045,0.00015416,2]
[399258728,1766212241328,-2000.0,0.00015416,2]
[399258729,1766212241338,-1501.47727649,0.00015416,2]
[399258730,1766212241348,-500.0,0.00015479,2]
[399258731,1766212241357,-250.0,0.00015479,2]
[399258732,1766212241366,-500.0,0.00015479,2]
[399258733,1766212241376,-765.0,0.00015479,2]
[399258734,1766212241385,-519.0,0.00015479,2]
[399258735,1766212241394,-1054.0,0.00015479,2]
[399258736,1766212241403,-500.0,0.00015521,2]
[399258737,1766212241413,-500.0,0.00015616,2]
[399258738,1766212241423,-500.0,0.00015616,2]
[399258739,1766212241432,-765.0,0.00015616,2]
[399258740,1766212241441,-519.0,0.00015616,2]
[399258741,1766212241450,-1054.0,0.00015616,2]
[399258742,1766212241460,-23513.68068727,0.00015652,2]
[399258743,1766212241469,-500.0,0.00015753,2]
[399258744,1766212241479,-500.0,0.00015753,2]
[399258745,1766212241488,-765.0,0.00015753,2]
[399258746,1766212241498,-519.0,0.00015753,2]
[399258747,1766212241507,-1054.0,0.00015753,2]
[399258748,1766212241516,-2228.79457528,0.00015807,2]
[399258749,1766212241525,-500.0,0.0001589,2]
[399258750,1766212241535,-500.0,0.0001589,2]
[399258751,1766212241544,-765.0,0.0001589,2]
[399258752,1766212241553,-519.0,0.0001589,2]
[399258753,1766212241562,-1054.0,0.0001589,2]
[399258754,1766212241571,-2722.1072294,0.000159,2]
[399258755,1766212241580,-1790.84096348,0.00015927,2]
[399258756,1766212241590,-340.00139221,0.00015927,2]
[399258757,1766212241599,-150.34870908,0.00015927,2]
[399258758,1766212241608,-200.0,0.00015931,2]
[399258759,1766212241618,-200.0,0.00015931,2]
[399258760,1766212241627,-500.0,0.00015931,2]
[399258761,1766212241637,-2500.0,0.00015964,2]
[399258762,1766212241646,-2500.0,0.00015964,2]
[399258763,1766212241655,-1647.70919262,0.0001599,2]
[399258764,1766212241665,-251037.70267655,0.00016,2]
[399258765,1766212241675,-1798670.36203289,0.00016,4]
[399258766,1766212241684,-500.0,0.00016027,2]
[399258767,1766212241695,-500.0,0.00016027,2]
[399258768,1766212241707,-765.0,0.00016027,2]
[399258769,1766212241719,-519.0,0.00016027,2]
[399258770,1766212241955,-1054.0,0.00016027,2]
[399258771,1766212241965,-1356.26502607,0.00016043,2]
[399258772,1766212241975,-500.0,0.00016164,2]
[399258773,1766212241988,-500.0,0.00016164,2]
[399258774,1766212242000,-765.0,0.00016164,2]
[399258775,1766212242010,-519.0,0.00016164,2]
[399258776,1766212242021,-1054.0,0.00016164,2]
[399258777,1766212242033,-160.47,0.00016169,2]
[399258778,1766212242044,-900.0,0.00016176,2]
[399258779,1766212242054,-5000.00013585,0.000162,5]
[399258780,1766212242063,-5647.27,0.00016212,2]
[399258781,1766212242073,-500.0,0.000163,2]
[399258782,1766212242082,-500.0,0.000163,2]
[399258783,1766212242093,-500.59670517,0.000163,2]
[399258784,1766212242102,-162.24077786,0.000163,2]
[399258785,1766212242111,-500.30081252,0.000163,2]
[399258786,1766212242122,-168.09419939,0.000163,2]
[399258787,1766212242132,-500.5692733,0.000163,2]
[399258788,1766212242142,-500.4308882,0.000163,2]
[399258789,1766212242152,-500.0,0.000163,2]
[399258790,1766212242161,-500.19600128,0.000163,2]
[399258791,1766212242170,-500.5161197,0.000163,2]
[399258792,1766212242180,-500.0,0.000163,2]
[399258793,1766212242192,-500.0,0.000163,2]
[399258794,1766212242202,-555.87900727,0.000163,2]
[399258795,1766212242211,-177.2862913,0.000163,2]
[399258796,1766212242222,-500.0,0.000163,2]
[399258797,1766212242232,-500.0,0.000163,2]
[399258798,1766212242242,-500.34670783,0.000163,2]
[399258799,1766212242252,-500.0,0.000163,2]
[399258800,1766212242262,-162.03877535,0.000163,2]
[399258801,1766212242271,-500.0,0.000163,2]
[399258802,1766212242280,-500.0,0.000163,2]
[399258803,1766212242290,-500.44010865,0.000163,2]
[399258804,1766212242302,-344.64845159,0.000163,2]
[399258805,1766212242312,-577.20648211,0.000163,2]
[399258808,1766212242321,-166.91561833,0.000163,2]
[399258810,1766212242332,-500.30832876,0.000163,2]
[399258812,1766212242344,-500.0,0.000163,2]
[399258814,1766212242355,-330.6916765,0.000163,2]
[399258815,1766212242366,-500.0,0.000163,2]
[399258816,1766212242377,-426.51211002,0.000163,2]
[399258817,1766212242386,-500.0,0.000163,2]
[399258818,1766212242396,-500.0,0.000163,2]
[399258819,1766212242407,-500.0,0.000163,2]
[399258820,1766212242417,-468.55909228,0.000163,2]
[399258821,1766212242429,-334.5464899,0.000163,2]
[399258822,1766212242438,-523.00588269,0.000163,2]
[399258823,1766212242449,-500.0,0.000163,2]
[399258824,1766212242461,-168.56959317,0.000163,2]
[399258825,1766212242470,-518.77690272,0.000163,2]
[399258826,1766212242479,-161.07996631,0.000163,2]
[399258827,1766212242489,-500.0,0.000163,2]
[399258828,1766212242498,-500.0,0.000163,2]
[399258829,1766212242507,-220.27121476,0.000163,2]
[399258830,1766212242517,-500.34860131,0.000163,2]
[399258831,1766212242526,-500.0,0.000163,2]
[399258832,1766212242536,-543.08632529,0.000163,2]
[399258833,1766212242545,-500.0,0.000163,2]
[399258834,1766212242554,-500.0,0.000163,2]
[399258835,1766212242563,-500.0,0.000163,2]
[399258836,1766212242572,-516.37835686,0.000163,2]
[399258837,1766212242582,-500.0,0.000163,2]
[399258838,1766212242591,-159.43095819,0.000163,2]
[399258839,1766212242601,-500.0,0.000163,2]
[399258840,1766212242611,-500.0,0.000163,2]
[399258841,1766212242620,-500.0,0.000163,2]
[399258842,1766212242629,-500.0,0.000163,2]
[399258843,1766212242639,-500.0,0.000163,2]
[399258844,1766212242649,-500.45922425,0.000163,2]
[399258845,1766212242658,-500.0,0.000163,2]
[399258846,1766212242668,-529.96646376,0.000163,2]
[399258847,1766212242677,-500.0,0.00016301,2]
[399258848,1766212242687,-500.0,0.00016301,2]
[399258849,1766212242696,-765.0,0.00016301,2]
[399258850,1766212242705,-519.0,0.00016301,2]
[399258851,1766212242714,-1054.0,0.00016301,2]
[399258852,1766212242724,-10000.01,0.00016326,2]
[399258853,1766212242733,-23513.68068727,0.00016331,2]
[399258854,1766212242744,-200.0,0.0001634,2]
[399258855,1766212242753,-228.0,0.000164,2]
[399258856,1766212242763,-319.0,0.000164,2]
[399258857,1766212242772,-182.0,0.000164,2]
[399258858,1766212242782,-183.63284637,0.000164,2]
[399258859,1766212242791,-500.0,0.00016438,2]
[399258860,1766212242800,-500.0,0.00016438,2]
[399258861,1766212242809,-765.0,0.00016438,2]
[399258862,1766212242819,-519.0,0.00016438,2]
[399258863,1766212242829,-1054.0,0.00016438,2]
[399258864,1766212242839,-500.0,0.00016438,2]
[399258865,1766212242849,-500.0,0.00016438,2]
[399258866,1766212242858,-500.0,0.00016438,2]
[399258867,1766212242868,-500.0,0.00016438,2]
[399258868,1766212242878,-500.0,0.00016438,2]
[399258869,1766212242888,-500.0,0.00016438,2]
[399258870,1766212242898,-500.0,0.00016438,2]
[399258871,1766212242907,-500.0,0.00016438,2]
[399258872,1766212242916,-225.86,0.00016438,2]
[399258873,1766212242925,-800.62641417,0.00016438,2]
[399258874,1766212242935,-164.42,0.0001644,2]
[399258875,1766212242944,-164.42,0.0001644,2]
[399258876,1766212242954,-164.42,0.0001644,2]
[399258877,1766212242963,-164.42,0.0001644,2]
[399258878,1766212242973,-164.42,0.0001644,2]
[399258879,1766212242982,-164.42,0.0001644,2]
[399258880,1766212242991,-164.42,0.0001644,2]
[399258881,1766212243001,-164.42,0.0001644,2]
[399258882,1766212243011,-164.42,0.0001644,2]
[399258883,1766212243023,-215.0738,0.00016477,2]
[399258884,1766212243032,-200.0,0.00016479,2]
[399258885,1766212243041,-200.0,0.00016479,2]
[399258886,1766212243051,-500.0,0.00016479,2]
[399258887,1766212243060,-3109.34995974,0.00016512,2]
[399258889,1766212243070,-3000.0,0.00016512,2]
[399258891,1766212243080,-571.85444648,0.00016523,2]
[399258893,1766212243090,-1600.0,0.00016551,2]
[399258894,1766212243101,-500.0,0.00016575,2]
[399258895,1766212243111,-374.88126201,0.00016575,2]
[399258896,1766212243123,-765.0,0.00016575,2]
[399258897,1766212243132,-519.0,0.00016575,2]
[399258898,1766212243142,-1054.0,0.00016575,2]
[399258899,1766212243152,-358.62936828,0.000166,2]
[399258900,1766212243163,-500.0,0.00016622,2]
[399258901,1766212243173,-246.05,0.00016641,2]
[399258902,1766212243187,-202723.52313142,0.0001666,2]
[399258903,1766212243198,-500.0,0.00016699,2]
[399258904,1766212243209,-500.0,0.00016699,2]
[399258905,1766212243218,-500.0,0.00016699,2]
[399258906,1766212243227,-500.0,0.00016712,2]
[399258907,1766212243238,-765.0,0.00016712,2]
[399258908,1766212243248,-519.0,0.00016712,2]
[399258909,1766212243258,-1054.0,0.00016712,2]
[399258910,1766212243268,-167.79,0.00016712,2]
[399258911,1766212243277,-500.0,0.00016836,2]
[399258912,1766212243287,-500.0,0.00016836,2]
[399258913,1766212243297,-500.0,0.00016836,2]
[399258914,1766212243306,-221.90485079,0.00016848,2]
[399258915,1766212243316,-1001.04801864,0.00016848,2]
[399258916,1766212243325,-1002.26047729,0.00016848,2]
[399258917,1766212243335,-1001.94292641,0.00016848,2]
[399258918,1766212243344,-1001.04078122,0.00016848,2]
[399258919,1766212243354,-1001.13256122,0.00016848,2]
[399258920,1766212243364,-1000.0,0.00016848,2]
[399258921,1766212243373,-1000.0,0.00016848,2]
[399258922,1766212243383,-1000.87355102,0.00016848,2]
[399258923,1766212243393,-1000.87754816,0.00016848,2]
[399258924,1766212243403,-1001.0574546,0.00016848,2]
[399258925,1766212243414,-1001.39291005,0.00016848,2]
[399258926,1766212243426,-1000.0,0.00016848,2]
[399258927,1766212243436,-1000.0,0.00016848,2]
[399258928,1766212243446,-1001.82577211,0.00016848,2]
[399258929,1766212243455,-1000.0,0.00016848,2]
[399258930,1766212243465,-1000.0,0.00016848,2]
[399258931,1766212243474,-1000.0,0.00016848,2]
[399258932,1766212243483,-1000.0,0.00016848,2]
[399258933,1766212243492,-998.88830841,0.00016848,2]
[399258934,1766212243502,-1000.866265,0.00016848,2]
[399258935,1766212243511,-500.58632088,0.00016848,2]
[399258936,1766212243521,-1000.0,0.00016848,2]
[399258937,1766212243530,-1000.9465121,0.00016848,2]
[399258938,1766212243539,-501.11789279,0.00016848,2]
[399258939,1766212243555,-501.13881872,0.00016848,2]
[399258940,1766212243571,-1000.0,0.00016848,2]
[399258941,1766212243581,-1000.96314567,0.00016848,2]
[399258942,1766212243591,-1000.0,0.00016848,2]
[399258943,1766212243600,-500.0,0.00016849,2]
[399258944,1766212243609,-765.0,0.00016849,2]
[399258945,1766212243618,-519.0,0.00016849,2]
[399258946,1766212243628,-1054.0,0.00016849,2]
[399258947,1766212243638,-344.17267186,0.00016855,2]
[399258948,1766212243647,-1000.0,0.00016892,2]
[399258949,1766212243656,-1000.0,0.00016892,2]
[399258950,1766212243666,-1000.0,0.00016892,2]
[399258951,1766212243675,-794.454,0.00016892,2]
[399258952,1766212243685,-1000.0,0.00016892,2]
[399258953,1766212243695,-1000.0,0.00016892,2]
[399258954,1766212243705,-1000.0,0.00016892,2]
[399258955,1766212243715,-1000.0,0.00016892,2]
[399258956,1766212243724,-1000.0,0.00016892,2]
[399258957,1766212243733,-515.04736606,0.000169,2]
[399258958,1766212243743,-1356.26502607,0.000169,2]
[399258959,1766212243753,-515.04736606,0.00016905,2]
[399258960,1766212243762,-515.04736606,0.0001691,2]
[399258961,1766212243772,-500.0,0.00016941,2]
[399258962,1766212243782,-150.10981544,0.00016973,2]